[Event "ONJK DE"]
[Site "Enschede, Netherlands"]
[Date "2022.08.12"]
[Round "11.5"]
[White "Okita, Shinsaku"]
[Black "Vogels, Mathijs"]
[Result "1/2-1/2"]
[TimeControl "40min + 30sec/move"]
[WhiteElo "938"]
[BlackElo "1283"]

1. e4 {[%clk 00:40:53]} {[%emt 00:00:06]} e5 {[%clk 00:40:56]} {[%emt
00:00:04]} 2. Nf3 {[%clk 00:41:18]} {[%emt 00:00:06]} Nc6 {[%clk 00:41:22]}
{[%emt 00:00:03]} 3. Bc4 {[%clk 00:41:37]} {[%emt 00:00:11]} Bc5 {[%clk
00:41:44]} {[%emt 00:00:08]} 4. d3 {[%clk 00:42:01]} {[%emt 00:00:06]} d6
{[%clk 00:42:03]} {[%emt 00:00:12]} 5. h3 {[%clk 00:42:27]} {[%emt 00:00:04]}
h6 {[%clk 00:42:25]} {[%emt 00:00:07]} 6. O-O {[%clk 00:42:51]} {[%emt
00:00:07]} Nf6 {[%clk 00:42:50]} {[%emt 00:00:05]} 7. Nc3 {[%clk 00:43:12]}
{[%emt 00:00:09]} Be6 {[%clk 00:43:12]} {[%emt 00:00:07]} 8. Bb3 {[%clk
00:43:35]} {[%emt 00:00:08]} O-O {[%clk 00:43:36]} {[%emt 00:00:05]} 9. Be3
{[%clk 00:44:00]} {[%emt 00:00:06]} Bb6 {[%clk 00:43:58]} {[%emt 00:00:08]} 10.
Qd2 {[%clk 00:44:11]} {[%emt 00:00:20]} Kh7 {[%clk 00:44:17]} {[%emt 00:00:10]}
11. Rfe1 {[%clk 00:44:18]} {[%emt 00:00:23]} Qd7 {[%clk 00:44:04]} {[%emt
00:00:42]} 12. Kh2 {[%clk 00:44:42]} {[%emt 00:00:06]} Rfe8 {[%clk 00:44:13]}
{[%emt 00:00:22]} 13. Na4 {[%clk 00:44:58]} {[%emt 00:00:14]} Ba5 {[%clk
00:44:04]} {[%emt 00:00:40]} 14. Nc3 {[%clk 00:45:15]} {[%emt 00:00:12]} Bb6
{[%clk 00:43:46]} {[%emt 00:00:48]} 15. Bxe6 {[%clk 00:45:23]} {[%emt
00:00:20]} fxe6 {[%clk 00:44:07]} {[%emt 00:00:10]} 16. Na4 {[%clk 00:45:32]}
{[%emt 00:00:22]} Ba5 {[%clk 00:43:53]} {[%emt 00:00:44]} 17. Nc3 {[%clk
00:45:51]} {[%emt 00:00:11]} d5 {[%clk 00:44:15]} {[%emt 00:00:08]} 18. Bc5
{[%clk 00:45:00]} {[%emt 00:01:21]} d4 {[%clk 00:44:20]} {[%emt 00:00:25]} 19.
b4 {[%clk 00:44:16]} {[%emt 00:01:13]} dxc3 {[%clk 00:44:42]} {[%emt 00:00:08]}
20. Qxc3 {[%clk 00:44:37]} {[%emt 00:00:09]} Bb6 {[%clk 00:44:58]} {[%emt
00:00:15]} 21. Bxb6 {[%clk 00:45:00]} {[%emt 00:00:07]} axb6 {[%clk 00:45:16]}
{[%emt 00:00:12]} 22. Nxe5 {[%clk 00:45:23]} {[%emt 00:00:07]} Nxe5 {[%clk
00:45:34]} {[%emt 00:00:12]} 23. Qxe5 {[%clk 00:45:43]} {[%emt 00:00:10]} Qd6
{[%clk 00:45:56]} {[%emt 00:00:07]} 24. Qxd6 {[%clk 00:45:27]} {[%emt
00:00:46]} cxd6 {[%clk 00:46:21]} {[%emt 00:00:06]} 25. c4 {[%clk 00:45:39]}
{[%emt 00:00:18]} Ra3 {[%clk 00:46:28]} {[%emt 00:00:23]} 26. Re3 {[%clk
00:45:47]} {[%emt 00:00:21]} Rea8 {[%clk 00:46:48]} {[%emt 00:00:11]} 27. e5
{[%clk 00:45:48]} {[%emt 00:00:29]} dxe5 {[%clk 00:47:03]} {[%emt 00:00:15]} 28.
Rxe5 {[%clk 00:46:11]} {[%emt 00:00:07]} Rxd3 {[%clk 00:47:14]} {[%emt
00:00:19]} 29. Rxe6 {[%clk 00:46:09]} {[%emt 00:00:32]} Rd4 {[%clk 00:47:17]}
{[%emt 00:00:27]} 30. Rxb6 {[%clk 00:46:07]} {[%emt 00:00:32]} Rxc4 {[%clk
00:47:38]} {[%emt 00:00:09]} 31. Rxb7 {[%clk 00:46:06]} {[%emt 00:00:30]} Nd5
{[%clk 00:47:22]} {[%emt 00:00:47]} 32. b5 {[%clk 00:45:49]} {[%emt 00:00:48]}
Rb4 {[%clk 00:47:36]} {[%emt 00:00:15]} 33. a3 {[%clk 00:45:19]} {[%emt
00:01:00]} Rb3 {[%clk 00:47:47]} {[%emt 00:00:19]} 34. a4 {[%clk 00:45:35]}
{[%emt 00:00:14]} Nc3 {[%clk 00:47:43]} {[%emt 00:00:34]} 35. Re1 {[%clk
00:42:35]} {[%emt 00:03:29]} Nxa4 {[%clk 00:47:25]} {[%emt 00:00:48]} 36. Ree7
{[%clk 00:42:44]} {[%emt 00:00:22]} Rg8 {[%clk 00:47:46]} {[%emt 00:00:08]} 37.
Ra7 {[%clk 00:42:52]} {[%emt 00:00:23]} Nc3 {[%clk 00:47:58]} {[%emt 00:00:18]}
38. Re3 {[%clk 00:42:55]} {[%emt 00:00:26]} Nxb5 {[%clk 00:47:25]} {[%emt
00:01:03]} 39. Rxb3 {[%clk 00:43:04]} {[%emt 00:00:22]} Nxa7 {[%clk 00:47:49]}
{[%emt 00:00:06]} 40. g4 {[%clk 00:42:42]} {[%emt 00:00:52]} Nc6 {[%clk
00:48:03]} {[%emt 00:00:15]} 41. f4 {[%clk 00:42:36]} {[%emt 00:00:37]} Nd4
{[%clk 00:48:01]} {[%emt 00:00:30]} 42. Rd3 {[%clk 00:42:47]} {[%emt 00:00:21]}
Ne2 {[%clk 00:47:27]} {[%emt 00:01:04]} 43. f5 {[%clk 00:42:55]} {[%emt
00:00:22]} Rf8 {[%clk 00:47:06]} {[%emt 00:00:51]} 44. Re3 {[%clk 00:43:06]}
{[%emt 00:00:19]} Nd4 {[%clk 00:47:09]} {[%emt 00:00:26]} 45. Kg3 {[%clk
00:42:45]} {[%emt 00:00:51]} h5 {[%clk 00:47:11]} {[%emt 00:00:29]} 46. Re4
{[%clk 00:42:07]} {[%emt 00:01:08]} Rd8 {[%clk 00:47:13]} {[%emt 00:00:28]} 47.
Kf4 {[%clk 00:42:16]} {[%emt 00:00:21]} hxg4 {[%clk 00:46:14]} {[%emt
00:01:29]} 48. hxg4 {[%clk 00:41:59]} {[%emt 00:00:47]} Nc6 {[%clk 00:45:45]}
{[%emt 00:00:59]} 49. Kg5 {[%clk 00:40:32]} {[%emt 00:01:57]} Rf8 {[%clk
00:43:01]} {[%emt 00:03:07]} 50. Kh5 {[%clk 00:39:21]} {[%emt 00:01:48]} Nd8
{[%clk 00:41:57]} {[%emt 00:01:33]} 51. Kg5 {[%clk 00:38:35]} {[%emt 00:01:17]}
Rf6 {[%clk 00:42:02]} {[%emt 00:00:23]} 52. Kf4 {[%clk 00:38:25]} {[%emt
00:00:41]} Ra6 {[%clk 00:41:08]} {[%emt 00:01:21]} 53. Re3 {[%clk 00:37:21]}
{[%emt 00:01:29]} Ra4+ {[%clk 00:41:08]} {[%emt 00:00:39]} 54. Re4 {[%emt
00:01:49]} Ra6 {[%clk 00:39:51]} {[%emt 00:00:09]} 55. Re3 {[%clk 00:37:22]}
{[%emt 00:00:48]} Nf7 {[%emt 00:01:05]} 56. Re4 {[%clk 00:35:39]} {[%emt
00:02:11]} Ra1 {[%clk 00:38:40]} {[%emt 00:01:07]} 57. Re3 {[%clk 00:35:51]}
{[%emt 00:00:18]} Rf1+ {[%clk 00:37:56]} {[%emt 00:01:15]} 58. Rf3 {[%clk
00:35:56]} {[%emt 00:00:25]} Rh1 {[%clk 00:37:48]} {[%emt 00:00:37]} 59. Rg3
{[%clk 00:35:14]} {[%emt 00:01:13]} Nh6 {[%clk 00:36:57]} {[%emt 00:01:21]} 60.
Kg5 {[%clk 00:34:49]} {[%emt 00:00:55]} Nf7+ {[%clk 00:36:23]} {[%emt
00:01:04]} 61. Kf4 {[%clk 00:34:55]} {[%emt 00:00:25]} Rb1 {[%clk 00:36:01]}
{[%emt 00:00:50]} 62. Re3 {[%clk 00:35:00]} {[%emt 00:00:25]} Rb6 {[%clk
00:36:13]} {[%emt 00:00:19]} 63. Re4 {[%clk 00:34:27]} {[%emt 00:01:03]} Nd6
{[%clk 00:35:00]} {[%emt 00:01:42]} 64. Re3 {[%clk 00:32:56]} {[%emt 00:02:02]}
Rb4+ {[%clk 00:35:11]} {[%emt 00:00:18]} 65. Kg5 {[%clk 00:32:37]} {[%emt
00:00:49]} Ne4+ {[%clk 00:35:09]} {[%emt 00:00:33]} 66. Kh4 {[%clk 00:32:50]}
{[%emt 00:00:17]} Nd6 {[%clk 00:34:24]} {[%emt 00:01:15]} 67. Kh3 {[%clk
00:32:48]} {[%emt 00:00:31]} Ne4 {[%clk 00:34:28]} {[%emt 00:00:26]} 68. Kh4
{[%clk 00:33:05]} {[%emt 00:00:14]} Nf6 {[%clk 00:34:28]} {[%emt 00:00:29]} 69.
Rg3 {[%clk 00:33:26]} {[%emt 00:00:09]} Rb1 {[%clk 00:33:58]} {[%emt 00:01:00]}
70. g5 {[%clk 00:33:06]} {[%emt 00:00:51]} Ne4 {[%clk 00:33:36]} {[%emt
00:00:52]} 71. g6+ {[%clk 00:32:52]} {[%emt 00:00:44]} Kg8 {[%clk 00:33:26]}
{[%emt 00:00:38]} 72. Ra3 {[%clk 00:32:44]} {[%emt 00:00:40]} 1/2-1/2

[Event "ONJK DE"]
[Site "Enschede, Netherlands"]
[Date "2022.08.12"]
[Round "11.6"]
[White "Uitermark, Imre"]
[Black "Katpatal, Akshaj (E)"]
[Result "0-1"]
[TimeControl "40min + 30sec/move"]
[WhiteElo "1028"]
[BlackElo "1874"]

1. e4 {[%clk 00:40:58]} {[%emt 00:00:02]} e5 {[%clk 00:40:59]} 2. Nf3 {[%clk
00:41:23]} {[%emt 00:00:05]} Nc6 {[%clk 00:41:20]} {[%emt 00:00:10]} 3. Nc3
{[%clk 00:41:40]} {[%emt 00:00:12]} Nf6 {[%clk 00:41:45]} {[%emt 00:00:05]} 4.
d3 {[%clk 00:41:57]} {[%emt 00:00:13]} Bc5 {[%clk 00:42:11]} {[%emt 00:00:04]}
5. Bg5 {[%clk 00:42:17]} {[%emt 00:00:11]} h6 {[%clk 00:42:34]} {[%emt
00:00:06]} 6. Bxf6 {[%clk 00:42:33]} {[%emt 00:00:14]} Qxf6 {[%clk 00:42:56]}
{[%emt 00:00:07]} 7. Nd5 {[%clk 00:42:57]} {[%emt 00:00:07]} Qd8 {[%clk
00:43:20]} {[%emt 00:00:06]} 8. Be2 {[%clk 00:43:15]} {[%emt 00:00:12]} d6
{[%clk 00:43:29]} {[%emt 00:00:21]} 9. O-O {[%clk 00:43:34]} {[%emt 00:00:11]}
Be6 {[%clk 00:43:53]} {[%emt 00:00:06]} 10. Nc3 {[%clk 00:43:39]} {[%emt
00:00:25]} O-O {[%clk 00:44:12]} {[%emt 00:00:10]} 11. a3 {[%clk 00:43:23]}
{[%emt 00:00:48]} Re8 {[%clk 00:44:33]} {[%emt 00:00:07]} 12. Na4 {[%emt
00:00:21]} Bb6 {[%clk 00:44:52]} {[%emt 00:00:08]} 13. Nxb6 {[%clk 00:43:02]}
{[%emt 00:01:04]} axb6 {[%clk 00:45:13]} {[%emt 00:00:09]} 14. c3 {[%clk
00:42:55]} {[%emt 00:00:37]} d5 {[%clk 00:45:38]} {[%emt 00:00:06]} 15. Qc2
{[%clk 00:42:25]} {[%emt 00:00:59]} Qe7 {[%clk 00:45:44]} {[%emt 00:00:22]} 16.
Rfd1 {[%clk 00:41:58]} {[%emt 00:00:58]} Na5 {[%clk 00:45:53]} {[%emt
00:00:22]} 17. exd5 {[%clk 00:40:52]} {[%emt 00:01:36]} Bxd5 {[%clk 00:46:14]}
{[%emt 00:00:07]} 18. c4 {[%clk 00:40:59]} {[%emt 00:00:25]} Bxf3 {[%clk
00:45:13]} {[%emt 00:01:31]} 19. Bxf3 {[%clk 00:40:59]} {[%emt 00:00:30]} Nc6
{[%clk 00:45:36]} {[%emt 00:00:06]} 20. Bxc6 {[%clk 00:37:27]} {[%emt
00:04:02]} bxc6 {[%clk 00:45:08]} {[%emt 00:00:57]} 21. Qe2 {[%clk 00:36:46]}
{[%emt 00:01:12]} Rad8 {[%clk 00:45:29]} {[%emt 00:00:10]} 22. Qe4 {[%clk
00:36:20]} {[%emt 00:00:56]} Qe6 {[%clk 00:45:50]} {[%emt 00:00:09]} 23. Rd2
{[%clk 00:35:44]} {[%emt 00:01:06]} f5 {[%clk 00:45:43]} {[%emt 00:00:38]} 24.
Qe2 {[%clk 00:35:24]} {[%emt 00:00:47]} c5 {[%clk 00:46:04]} {[%emt 00:00:12]}
25. Re1 {[%clk 00:35:27]} {[%emt 00:00:27]} Qd6 {[%emt 00:06:19]} 26. Red1
{[%clk 00:28:46]} {[%emt 00:00:58]} Re7 {[%clk 00:46:48]} {[%emt 00:00:10]} 27.
Rc1 {[%clk 00:25:11]} {[%emt 00:04:06]} e4 {[%clk 00:47:06]} {[%emt 00:00:11]}
28. Qd1 {[%clk 00:23:47]} {[%emt 00:01:52]} exd3 {[%clk 00:47:11]} {[%emt
00:00:26]} 29. Rc3 {[%clk 00:23:34]} {[%emt 00:00:44]} Red7 {[%clk 00:47:31]}
{[%emt 00:00:10]} 30. g3 {[%clk 00:22:59]} {[%emt 00:01:05]} Qd4 {[%clk
00:47:40]} {[%emt 00:00:20]} 31. Qf3 {[%clk 00:21:30]} {[%emt 00:01:59]} Qe4
{[%clk 00:48:01]} {[%emt 00:00:10]} 32. Qxe4 {[%clk 00:21:51]} {[%emt
00:00:09]} fxe4 {[%clk 00:48:25]} {[%emt 00:00:07]} 33. Kg2 {[%clk 00:21:36]}
{[%emt 00:00:44]} Rd4 {[%clk 00:48:36]} {[%emt 00:00:19]} 34. Rc1 {[%clk
00:20:49]} {[%emt 00:01:17]} Kf7 {[%clk 00:48:53]} {[%emt 00:00:13]} 35. g4
{[%clk 00:19:48]} {[%emt 00:01:32]} Kf6 {[%clk 00:49:15]} {[%emt 00:00:06]} 36.
Kg3 {[%clk 00:20:08]} {[%emt 00:00:09]} g5 {[%clk 00:49:35]} {[%emt 00:00:13]}
37. b3 {[%clk 00:19:27]} {[%emt 00:01:10]} Ke5 {[%clk 00:48:55]} {[%emt
00:01:11]} 38. Re1 {[%clk 00:18:59]} {[%emt 00:00:57]} Rf8 {[%clk 00:49:14]}
{[%emt 00:00:11]} 39. Re3 {[%clk 00:18:51]} {[%emt 00:00:38]} Rf4 {[%clk
00:49:16]} {[%emt 00:00:27]} 40. h3 {[%clk 00:17:05]} {[%emt 00:02:17]} Rd8
{[%clk 00:49:38]} {[%emt 00:00:08]} 41. Re1 {[%clk 00:14:43]} {[%emt 00:02:52]}
Kd4 {[%clk 00:50:00]} {[%emt 00:00:07]} 42. Rb2 {[%clk 00:13:10]} {[%emt
00:02:04]} Kc3 {[%clk 00:50:15]} {[%emt 00:00:13]} 43. Rbb1 {[%clk 00:12:22]}
{[%emt 00:01:20]} d2 {[%clk 00:50:20]} {[%emt 00:00:23]} 44. Red1 {[%clk
00:12:02]} {[%emt 00:00:51]} Rf3 {[%clk 00:50:36]} {[%emt 00:00:15]} 45. Kg2
{[%clk 00:12:00]} {[%emt 00:00:33]} Rdf8 {[%clk 00:51:01]} {[%emt 00:00:04]} 46.
Rf1 {[%clk 00:11:41]} {[%emt 00:00:48]} e3 {[%clk 00:51:25]} {[%emt 00:00:06]}
0-1

[Event "ONJK DE"]
[Site "Enschede, Netherlands"]
[Date "2022.08.12"]
[Round "11.7"]
[White "Van Borren, Ruben"]
[Black "Thijssen, Freek (E)"]
[Result "0-1"]
[TimeControl "40min + 30sec/move"]
[WhiteElo "629"]
[BlackElo "1484"]

1. e4 {[%clk 00:40:59]} e5 {[%clk 00:40:55]} {[%emt 00:00:07]} 2. Nf3 {[%clk
00:41:24]} {[%emt 00:00:04]} Nc6 {[%clk 00:41:20]} {[%emt 00:00:04]} 3. d4
{[%clk 00:41:47]} {[%emt 00:00:07]} exd4 {[%clk 00:41:45]} {[%emt 00:00:05]} 4.
Nxd4 {[%clk 00:42:07]} {[%emt 00:00:09]} Bc5 {[%clk 00:42:08]} {[%emt
00:00:09]} 5. Be3 {[%clk 00:42:31]} {[%emt 00:00:06]} Qf6 {[%clk 00:42:30]}
{[%emt 00:00:08]} 6. c3 {[%clk 00:42:51]} {[%emt 00:00:10]} Nge7 {[%clk
00:42:25]} {[%emt 00:00:35]} 7. Bc4 {[%clk 00:43:01]} {[%emt 00:00:16]} O-O
{[%clk 00:42:23]} {[%emt 00:00:36]} 8. O-O {[%clk 00:43:08]} {[%emt 00:00:12]}
Bb6 {[%clk 00:41:49]} {[%emt 00:01:15]} 9. Qd3 {[%clk 00:42:19]} {[%emt
00:01:16]} d6 {[%clk 00:41:15]} {[%emt 00:01:08]} 10. Nd2 {[%clk 00:42:19]}
{[%emt 00:00:28]} Qg6 {[%clk 00:38:56]} {[%emt 00:02:49]} 11. Rfe1 {[%clk
00:42:07]} {[%emt 00:00:43]} Ne5 {[%clk 00:38:39]} {[%emt 00:00:47]} 12. Rad1
{[%clk 00:41:12]} {[%emt 00:01:24]} Nxd3 {[%clk 00:39:00]} {[%emt 00:00:09]} 13.
Bxd3 {[%clk 00:41:32]} {[%emt 00:00:10]} f5 {[%clk 00:38:49]} {[%emt 00:00:42]}
14. Bc4+ {[%clk 00:41:43]} {[%emt 00:00:18]} Kh8 {[%clk 00:38:56]} {[%emt
00:00:24]} 15. Bf4 {[%clk 00:41:37]} {[%emt 00:00:35]} fxe4 {[%clk 00:39:07]}
{[%emt 00:00:20]} 16. Nxe4 {[%clk 00:41:56]} {[%emt 00:00:11]} Rxf4 {[%clk
00:39:19]} {[%emt 00:00:17]} 17. f3 {[%clk 00:41:52]} {[%emt 00:00:35]} Rxf3
{[%clk 00:39:16]} {[%emt 00:00:33]} 18. Kh1 {[%clk 00:40:10]} {[%emt 00:02:49]}
Rf8 {[%clk 00:39:35]} {[%emt 00:00:34]} 19. Rf1 {[%clk 00:40:15]} {[%emt
00:00:25]} Bd7 {[%clk 00:39:34]} {[%emt 00:00:31]} 20. Rf2 {[%clk 00:40:19]}
{[%emt 00:00:24]} Qxe4 {[%clk 00:39:47]} {[%emt 00:00:19]} 21. Rdf1 {[%clk
00:40:33]} {[%emt 00:00:16]} Rxf2 {[%clk 00:39:28]} {[%emt 00:00:49]} 22. Rxf2
{[%clk 00:40:54]} {[%emt 00:00:08]} Bxd4 {[%clk 00:39:51]} {[%emt 00:00:07]} 23.
Re2 {[%clk 00:40:46]} {[%emt 00:00:38]} Qb1+ {[%clk 00:39:51]} {[%emt
00:00:31]} 24. Re1 {[%clk 00:41:00]} {[%emt 00:00:16]} Qxe1+ {[%clk 00:40:03]}
{[%emt 00:00:18]} 25. Bf1 {[%clk 00:40:43]} {[%emt 00:00:03]} Qxf1# {[%clk
00:37:03]} {[%emt 00:04:14]} 0-1

[Event "ONJK DE"]
[Site "Enschede, Netherlands"]
[Date "2022.08.12"]
[Round "11.8"]
[White "Brorens, Victor (E)"]
[Black "Leenen, Boyd (E)"]
[Result "0-1"]
[TimeControl "40min + 30sec/move"]
[WhiteElo "952"]
[BlackElo "1417"]

1. e4 {[%clk 00:40:57]} {[%emt 00:00:03]} e5 {[%emt 00:00:02]} 2. Nf3 Nc6
{[%clk 00:40:57]} {[%emt 00:00:01]} 3. Nc3 {[%clk 00:41:25]} Nf6 {[%clk
00:41:21]} {[%emt 00:00:08]} 4. Bc4 {[%emt 00:00:07]} Bc5 {[%clk 00:41:45]}
{[%emt 00:00:02]} 5. d3 {[%emt 00:00:14]} h6 6. O-O {[%clk 00:42:41]} {[%emt
00:00:02]} d6 {[%clk 00:42:39]} {[%emt 00:00:03]} 7. h3 {[%clk 00:43:04]}
{[%emt 00:00:06]} Be6 {[%clk 00:43:06]} {[%emt 00:00:03]} 8. Bb3 {[%clk
00:43:25]} {[%emt 00:00:09]} O-O {[%clk 00:43:32]} {[%emt 00:00:04]} 9. Nd5
{[%clk 00:43:49]} {[%emt 00:00:05]} Bxd5 {[%clk 00:43:55]} {[%emt 00:00:08]} 10.
exd5 {[%clk 00:44:11]} {[%emt 00:00:08]} Ne7 {[%clk 00:44:21]} {[%emt
00:00:05]} 11. c4 {[%clk 00:44:35]} {[%emt 00:00:05]} c6 {[%clk 00:44:39]}
{[%emt 00:00:12]} 12. dxc6 {[%clk 00:44:56]} {[%emt 00:00:09]} Nxc6 {[%clk
00:45:04]} {[%emt 00:00:05]} 13. Re1 {[%clk 00:45:21]} {[%emt 00:00:05]} Re8
{[%clk 00:45:23]} {[%emt 00:00:12]} 14. Be3 {[%clk 00:45:45]} {[%emt 00:00:04]}
Bb6 {[%clk 00:45:48]} {[%emt 00:00:06]} 15. d4 {[%clk 00:45:54]} {[%emt
00:00:21]} Bc7 {[%clk 00:46:26]} {[%emt 00:01:05]} 16. d5 {[%clk 00:45:56]}
{[%emt 00:00:15]} Ne7 {[%clk 00:46:10]} {[%emt 00:00:46]} 17. c5 {[%clk
00:46:17]} {[%emt 00:00:09]} Ng6 {[%clk 00:46:13]} {[%emt 00:00:27]} 18. cxd6
{[%clk 00:46:32]} {[%emt 00:00:16]} Qxd6 {[%clk 00:45:22]} {[%emt 00:01:21]} 19.
Qd2 {[%clk 00:46:30]} {[%emt 00:00:31]} a6 {[%clk 00:45:03]} {[%emt 00:00:50]}
20. Rac1 {[%clk 00:46:53]} {[%emt 00:00:07]} Rad8 {[%clk 00:44:35]} {[%emt
00:00:58]} 21. Red1 {[%clk 00:47:02]} {[%emt 00:00:20]} Bb6 {[%clk 00:42:39]}
{[%emt 00:02:27]} 22. Bxb6 {[%clk 00:47:14]} {[%emt 00:00:17]} Qxb6 {[%clk
00:43:00]} {[%emt 00:00:08]} 23. Rc3 {[%clk 00:47:27]} {[%emt 00:00:18]} Ne4
{[%clk 00:43:01]} {[%emt 00:00:29]} 24. Qe3 {[%clk 00:47:46]} {[%emt 00:00:11]}
Qxe3 {[%clk 00:42:46]} {[%emt 00:00:45]} 25. Rxe3 {[%clk 00:48:05]} {[%emt
00:00:11]} Nc5 {[%clk 00:42:57]} {[%emt 00:00:19]} 26. Rde1 {[%clk 00:48:22]}
{[%emt 00:00:13]} Nxb3 {[%clk 00:43:00]} {[%emt 00:00:27]} 27. Rxb3 {[%emt
00:00:47]} Re7 {[%clk 00:41:12]} {[%emt 00:01:40]} 28. Rd3 {[%clk 00:48:57]}
{[%emt 00:00:47]} f6 {[%clk 00:40:37]} {[%emt 00:01:23]} 29. Nd2 {[%clk
00:49:15]} {[%emt 00:00:12]} Red7 {[%clk 00:40:55]} {[%emt 00:00:12]} 30. Rb3
{[%clk 00:49:19]} {[%emt 00:00:26]} Rxd5 {[%clk 00:41:15]} {[%emt 00:00:10]} 31.
Nf3 {[%emt 00:00:39]} b5 {[%clk 00:41:28]} {[%emt 00:00:30]} 32. Ra3 {[%clk
00:50:14]} {[%emt 00:00:13]} R8d6 {[%clk 00:41:32]} {[%emt 00:00:26]} 33. Rc1
{[%clk 00:50:27]} {[%emt 00:00:17]} Rd1+ {[%clk 00:41:48]} {[%emt 00:00:14]} 34.
Rxd1 {[%clk 00:50:36]} {[%emt 00:00:21]} Rxd1+ {[%clk 00:42:05]} {[%emt
00:00:13]} 35. Kh2 {[%clk 00:51:05]} {[%emt 00:00:01]} Rd6 {[%clk 00:41:34]}
{[%emt 00:01:02]} 36. Ne1 {[%clk 00:51:25]} {[%emt 00:00:09]} Nf4 {[%clk
00:40:56]} {[%emt 00:01:08]} 37. Nc2 {[%clk 00:51:38]} {[%emt 00:00:16]} Nd5
{[%clk 00:41:15]} {[%emt 00:00:11]} 38. Rd3 {[%clk 00:51:53]} {[%emt 00:00:16]}
Rc6 {[%clk 00:41:12]} {[%emt 00:00:32]} 39. Ne1 {[%clk 00:51:11]} {[%emt
00:01:13]} Nb4 {[%clk 00:39:35]} {[%emt 00:02:08]} 40. Rd8+ {[%clk 00:51:28]}
{[%emt 00:00:12]} Kh7 {[%clk 00:40:00]} {[%emt 00:00:05]} 41. a3 {[%clk
00:51:49]} {[%emt 00:00:10]} Nc2 {[%clk 00:38:45]} {[%emt 00:01:44]} 42. Nxc2
{[%clk 00:52:03]} {[%emt 00:00:16]} Rxc2 {[%clk 00:39:09]} {[%emt 00:00:06]} 43.
Rd6 {[%clk 00:52:25]} {[%emt 00:00:07]} Rxb2 {[%clk 00:39:13]} {[%emt
00:00:27]} 44. Rxa6 {[%clk 00:52:42]} {[%emt 00:00:12]} Rxf2 {[%clk 00:39:37]}
{[%emt 00:00:07]} 45. Rb6 {[%clk 00:53:09]} {[%emt 00:00:03]} Ra2 {[%clk
00:39:59]} {[%emt 00:00:08]} 46. Ra6 {[%clk 00:53:32]} {[%emt 00:00:07]} b4
{[%clk 00:40:15]} {[%emt 00:00:14]} 47. a4 {[%clk 00:53:52]} {[%emt 00:00:10]}
b3 {[%clk 00:40:37]} {[%emt 00:00:07]} 48. Rb6 {[%clk 00:54:16]} {[%emt
00:00:06]} Rxa4 {[%clk 00:41:03]} {[%emt 00:00:04]} 49. Rxb3 {[%clk 00:54:41]}
{[%emt 00:00:05]} Kg6 {[%emt 00:00:32]} 50. Kg3 {[%clk 00:55:01]} {[%emt
00:00:08]} h5 {[%clk 00:40:47]} {[%emt 00:00:47]} 51. Kf3 {[%clk 00:55:04]}
{[%emt 00:00:26]} Kh6 {[%clk 00:40:46]} {[%emt 00:00:31]} 52. g4 {[%clk
00:55:22]} {[%emt 00:00:13]} hxg4+ {[%clk 00:40:44]} {[%emt 00:00:31]} 53. hxg4
{[%clk 00:55:44]} {[%emt 00:00:08]} Kg5 {[%clk 00:41:05]} {[%emt 00:00:09]} 54.
Rb7 {[%clk 00:56:05]} {[%emt 00:00:09]} g6 {[%clk 00:40:54]} {[%emt 00:00:42]}
55. Rg7 {[%clk 00:56:24]} {[%emt 00:00:09]} Rxg4 {[%clk 00:40:48]} {[%emt
00:00:37]} 56. Rxg6+ {[%clk 00:56:46]} {[%emt 00:00:08]} Kxg6 {[%clk 00:41:06]}
{[%emt 00:00:12]} 57. Kxg4 {[%clk 00:57:00]} {[%emt 00:00:16]} f5+ {[%clk
00:41:32]} {[%emt 00:00:02]} 58. Kf3 {[%clk 00:57:24]} {[%emt 00:00:08]} Kg5
{[%clk 00:41:50]} 59. Kg3 {[%clk 00:57:47]} {[%emt 00:00:18]} e4 {[%clk
00:42:11]} 60. Kf2 {[%clk 00:58:10]} {[%emt 00:00:17]} f4 {[%clk 00:42:31]} 61.
Kg2 {[%clk 00:58:35]} {[%emt 00:00:14]} Kg4 {[%clk 00:42:54]} 62. Kf2 {[%clk
00:59:00]} {[%emt 00:00:13]} e3+ {[%clk 00:43:13]} 63. Ke2 {[%clk 00:59:23]}
{[%emt 00:00:17]} Kg3 {[%emt 00:00:14]} 64. Kf1 {[%clk 00:59:40]} {[%emt
00:00:08]} f3 {[%clk 00:43:54]} {[%emt 00:00:11]} 65. Ke1 {[%clk 01:00:05]}
{[%emt 00:00:04]} e2 {[%clk 00:44:12]} {[%emt 00:00:13]} 66. Kd2 {[%clk
01:00:31]} {[%emt 00:00:04]} Kf2 {[%clk 00:44:33]} {[%emt 00:00:10]} 67. Kd3
{[%clk 01:00:55]} {[%emt 00:00:05]} e1=Q {[%clk 00:44:45]} {[%emt 00:00:06]} 68.
Kd4 {[%clk 01:01:19]} Kg3 {[%clk 00:44:45]} 69. Kc4 {[%clk 01:01:19]} {[%emt
00:00:18]} f2 {[%clk 00:45:09]} 70. Kd4 {[%clk 01:01:24]} {[%emt 00:00:15]}
f1=Q 71. Ke4 {[%clk 01:01:24]} {[%emt 00:00:16]} Qf3+ {[%clk 00:45:24]} 72. Kd4
{[%clk 01:01:39]} {[%emt 00:00:31]} Qec3# {[%clk 00:45:13]} 0-1